{"text_format":"1","workbook":"xlsx","n_sheets":3,"sheets":["Order Sheet Summary","Order Pulling Sheet","Sheet1"],"not_rendered":{"charts":0,"images":1,"macros":1,"external_links":0,"defined_names":8,"comments":0,"pivot_tables":0},"unopened":[],"bounds":{"document_bytes":16777216,"sheet_cells":100000,"rows_first":2000,"rows_last":500,"rows_between":2000,"halvings":0,"cell_chars":16384,"cell_head_chars":4096},"cells_cut":0,"cells_raw":0,"read":"whole","date_system":"1900"}

{"sheet":"Order Sheet Summary","index":0,"n_rows":511,"n_cols":24,"rows_kept":511,"cut":false,"hidden":false,"merged":[[8,18,8,23],[0,8,0,17],[0,1,0,7],[1,1,1,7],[3,1,3,7],[4,1,4,7],[8,5,8,14],[8,15,8,17],[3,8,3,10],[4,8,4,10],[1,8,1,12],[6,1,6,23],[1,20,1,23]]}
[null,"Enter Your Group Name Here =",null,null,null,null,null,null,null,null,null,null,null,null,null,null,null,null,null,null,"Submit Order Online:"]
[null,"Enter Your Delivery Date Here =",null,null,null,null,null,null," ",null,null,null,null,null,null,null,null,null,null,null,"mariannasfundraisers.com/submit-your-order"]
[null,null,null,null,null,null,null,null,null,null,null,null,null,null,null,null,null,null,null,null,"...or Email to: mariannas@delgrossos.com"]
[null,"Enter Your Hoagie Delivery Price Here = ",null,null,null,null,null,null,null,null,null,null,null,null,null,null,null,null,null,null,"...or Call: (814) 684-2666 ext. 206"]
[null,"Enter Your Pizza Delivery Price Here = "]
[]
[null,"Don't forget to print your order pulling sheets.  See the \"Order Pulling Sheet\"  tab below!"]
[]
[null,null,null,null,null,"14\" Hoagies",null,null,null,null,null,null,null,null,null,"12\" Pizzas",null,null,"TOTALS"]
[null,null,"Total Items Sold",null,null,{"$f":"SUM(F12:F511)","v":0},{"$f":"SUM(G12:G511)","v":0},0,0,{"$f":"SUM(J12:J511)","v":0},0,0,{"$f":"SUM(M12:M511)","v":0},{"$f":"SUM(N12:N511)","v":0},0,0,0,0,0,0,0,0,0,0]
[null,"First Name","Last Name","Hidden Columns","Hidden Columns","Italian","All American","Ham & Swiss","Sweet Lebanon Bologna","Ham Club","Roast Beef","Smoked Ham & Cheddar","Turkey","Traditional","Three Cheese","Pepperoni","White","Cheese","Total Hoagies","Total Pizzas","Total Items Sold","Amount Due","Paid","Due"]
[1,null,null,{"$f":"CONCATENATE(C12,\", \",B12)","v":", "},{"$f":"A12","v":1},null,null,null,null,null,null,null,null,null,null,null,null,null,{"$f":"SUM(F12:O12)","v":0},{"$f":"SUM(P12:R12)","v":0},{"$f":"S12+T12","v":0},{"$f":"IFERROR(S12*$I$4+T12*$I$5,0)","v":0},null,{"$f":"V12-W12","v":0}]
[2,null,null,", ",2,null,null,null,null,null,null,null,null,null,null,null,null,null,{"$f":"SUM(F13:O13)","v":0},{"$f":"SUM(P13:R13)","v":0},{"$f":"S13+T13","v":0},{"$f":"IFERROR(S13*$I$4+T13*$I$5,0)","v":0},null,{"$f":"V13-W13","v":0}]
[3,null,null,", ",3,null,null,null,null,null,null,null,null,null,null,null,null,null,0,0,0,0,null,0]
[4,null,null,{"$f":"CONCATENATE(C15,\", \",B15)","v":", "},{"$f":"A15","v":4},null,null,null,null,null,null,null,null,null,null,null,null,null,0,0,0,0,null,{"$f":"V15-W15","v":0}]
[5,null,null,{"$f":"CONCATENATE(C16,\", \",B16)","v":", "},5,null,null,null,null,null,null,null,null,null,null,null,null,null,0,0,0,0,null,0]
[6,null,null,", ",6,null,null,null,null,null,null,null,null,null,null,null,null,null,0,0,0,0,null,0]
[7,null,null,", ",7,null,null,null,null,null,null,null,null,null,null,null,null,null,0,0,0,0,null,0]
[8,null,null,", ",8,null,null,null,null,null,null,null,null,null,null,null,null,null,0,0,0,0,null,0]
[9,null,null,", ",9,null,null,null,null,null,null,null,null,null,null,null,null,null,0,0,0,0,null,0]
[10,null,null,", ",10,null,null,null,null,null,null,null,null,null,null,null,null,null,0,0,0,0,null,0]
[11,null,null,", ",11,null,null,null,null,null,null,null,null,null,null,null,null,null,0,0,0,0,null,0]
[12,null,null,", ",12,null,null,null,null,null,null,null,null,null,null,null,null,null,0,0,0,0,null,0]
[13,null,null,", ",13,null,null,null,null,null,null,null,null,null,null,null,null,null,0,0,0,0,null,0]
[14,null,null,", ",14,null,null,null,null,null,null,null,null,null,null,null,null,null,0,0,0,0,null,0]
[15,null,null,", ",15,null,null,null,null,null,null,null,null,null,null,null,null,null,0,0,0,0,null,0]
[16,null,null,", ",16,null,null,null,null,null,null,null,null,null,null,null,null,null,0,0,{"$f":"S27+T27","v":0},0,null,{"$f":"V27-W27","v":0}]
[17,null,null,", ",17,null,null,null,null,null,null,null,null,null,null,null,null,null,0,0,0,0,null,0]
[18,null,null,", ",18,null,null,null,null,null,null,null,null,null,null,null,null,null,0,0,0,0,null,0]
[19,null,null,", ",19,null,null,null,null,null,null,null,null,null,null,null,null,null,0,0,0,0,null,0]
[20,null,null,", ",20,null,null,null,null,null,null,null,null,null,null,null,null,null,0,0,0,0,null,0]
[21,null,null,", ",21,null,null,null,null,null,null,null,null,null,null,null,null,null,0,0,0,0,null,0]
[22,null,null,", ",22,null,null,null,null,null,null,null,null,null,null,null,null,null,0,0,0,0,null,0]
[23,null,null,", ",23,null,null,null,null,null,null,null,null,null,null,null,null,null,0,0,0,0,null,0]
[24,null,null,", ",24,null,null,null,null,null,null,null,null,null,null,null,null,null,0,0,0,0,null,0]
[25,null,null,", ",25,null,null,null,null,null,null,null,null,null,null,null,null,null,0,0,0,0,null,0]
[26,null,null,", ",26,null,null,null,null,null,null,null,null,null,null,null,null,null,0,0,0,0,null,0]
[27,null,null,", ",27,null,null,null,null,null,null,null,null,null,null,null,null,null,0,0,0,0,null,0]
[28,null,null,", ",28,null,null,null,null,null,null,null,null,null,null,null,null,null,0,0,0,0,null,0]
[29,null,null,", ",29,null,null,null,null,null,null,null,null,null,null,null,null,null,0,0,0,0,null,0]
[30,null,null,", ",30,null,null,null,null,null,null,null,null,null,null,null,null,null,0,0,0,0,null,0]
[31,null,null,", ",31,null,null,null,null,null,null,null,null,null,null,null,null,null,{"$f":"SUM(F42:O42)","v":0},0,0,0,null,0]
[32,null,null,", ",32,null,null,null,null,null,null,null,null,null,null,null,null,null,0,0,0,0,null,0]
[33,null,null,", ",33,null,null,null,null,null,null,null,null,null,null,null,null,null,0,0,0,0,null,0]
[34,null,null,", ",34,null,null,null,null,null,null,null,null,null,null,null,null,null,0,0,0,0,null,0]
[35,null,null,", ",35,null,null,null,null,null,null,null,null,null,null,null,null,null,0,0,0,0,null,0]
[36,null,null,", ",36,null,null,null,null,null,null,null,null,null,null,null,null,null,0,0,0,0,null,0]
[37,null,null,", ",37,null,null,null,null,null,null,null,null,null,null,null,null,null,0,0,0,0,null,0]
[38,null,null,", ",38,null,null,null,null,null,null,null,null,null,null,null,null,null,0,0,0,0,null,0]
[39,null,null,", ",39,null,null,null,null,null,null,null,null,null,null,null,null,null,0,0,{"$f":"S50+T50","v":0},0,null,{"$f":"V50-W50","v":0}]
[40,null,null,", ",40,null,null,null,null,null,null,null,null,null,null,null,null,null,0,0,0,0,null,0]
[41,null,null,", ",41,null,null,null,null,null,null,null,null,null,null,null,null,null,0,0,0,0,null,0]
[42,null,null,", ",42,null,null,null,null,null,null,null,null,null,null,null,null,null,0,0,0,0,null,0]
[43,null,null,", ",43,null,null,null,null,null,null,null,null,null,null,null,null,null,0,0,0,0,null,0]
[44,null,null,", ",44,null,null,null,null,null,null,null,null,null,null,null,null,null,0,0,0,0,null,0]
[45,null,null,", ",45,null,null,null,null,null,null,null,null,null,null,null,null,null,0,0,0,0,null,0]
[46,null,null,", ",46,null,null,null,null,null,null,null,null,null,null,null,null,null,0,0,0,0,null,0]
[47,null,null,", ",47,null,null,null,null,null,null,null,null,null,null,null,null,null,0,0,{"$f":"S58+T58","v":0},0,null,{"$f":"V58-W58","v":0}]
[48,null,null,", ",48,null,null,null,null,null,null,null,null,null,null,null,null,null,0,0,0,0,null,0]
[49,null,null,", ",49,null,null,null,null,null,null,null,null,null,null,null,null,null,0,0,0,0,null,0]
[50,null,null,", ",50,null,null,null,null,null,null,null,null,null,null,null,null,null,0,0,0,0,null,0]
[51,null,null,", ",51,null,null,null,null,null,null,null,null,null,null,null,null,null,0,0,0,0,null,0]
[52,null,null,", ",52,null,null,null,null,null,null,null,null,null,null,null,null,null,0,0,0,0,null,0]
[53,null,null,", ",53,null,null,null,null,null,null,null,null,null,null,null,null,null,0,0,0,0,null,0]
[54,null,null,", ",54,null,null,null,null,null,null,null,null,null,null,null,null,null,0,0,0,0,null,0]
[55,null,null,", ",55,null,null,null,null,null,null,null,null,null,null,null,null,null,0,0,0,0,null,0]
[56,null,null,", ",56,null,null,null,null,null,null,null,null,null,null,null,null,null,0,0,0,0,null,0]
[57,null,null,", ",57,null,null,null,null,null,null,null,null,null,null,null,null,null,0,0,{"$f":"S68+T68","v":0},0,null,{"$f":"V68-W68","v":0}]
[58,null,null,", ",58,null,null,null,null,null,null,null,null,null,null,null,null,null,0,0,0,0,null,0]
[59,null,null,", ",59,null,null,null,null,null,null,null,null,null,null,null,null,null,0,0,0,0,null,0]
[60,null,null,", ",60,null,null,null,null,null,null,null,null,null,null,null,null,null,0,0,0,0,null,0]
[61,null,null,", ",61,null,null,null,null,null,null,null,null,null,null,null,null,null,0,0,0,0,null,0]
[62,null,null,", ",62,null,null,null,null,null,null,null,null,null,null,null,null,null,0,0,0,0,null,0]
[63,null,null,", ",63,null,null,null,null,null,null,null,null,null,null,null,null,null,0,0,0,0,null,0]
[64,null,null,", ",64,null,null,null,null,null,null,null,null,null,null,null,null,null,0,0,0,0,null,0]
[65,null,null,", ",65,null,null,null,null,null,null,null,null,null,null,null,null,null,0,0,0,0,null,0]
[66,null,null,{"$f":"CONCATENATE(C77,\", \",B77)","v":", "},{"$f":"A77","v":66},null,null,null,null,null,null,null,null,null,null,null,null,null,{"$f":"SUM(F77:O77)","v":0},{"$f":"SUM(P77:R77)","v":0},0,{"$f":"IFERROR(S77*$I$4+T77*$I$5,0)","v":0},null,0]
[67,null,null,", ",67,null,null,null,null,null,null,null,null,null,null,null,null,null,0,0,0,0,null,0]
[68,null,null,", ",68,null,null,null,null,null,null,null,null,null,null,null,null,null,0,0,0,0,null,0]
[69,null,null,", ",69,null,null,null,null,null,null,null,null,null,null,null,null,null,0,0,0,0,null,0]
[70,null,null,", ",70,null,null,null,null,null,null,null,null,null,null,null,null,null,0,0,0,0,null,0]
[71,null,null,", ",71,null,null,null,null,null,null,null,null,null,null,null,null,null,0,0,0,0,null,0]
[72,null,null,", ",72,null,null,null,null,null,null,null,null,null,null,null,null,null,0,0,0,0,null,0]
[73,null,null,", ",73,null,null,null,null,null,null,null,null,null,null,null,null,null,0,0,0,0,null,0]
[74,null,null,", ",74,null,null,null,null,null,null,null,null,null,null,null,null,null,0,0,0,0,null,0]
[75,null,null,", ",75,null,null,null,null,null,null,null,null,null,null,null,null,null,0,0,0,0,null,0]
[76,null,null,", ",76,null,null,null,null,null,null,null,null,null,null,null,null,null,0,0,0,0,null,0]
[77,null,null,", ",77,null,null,null,null,null,null,null,null,null,null,null,null,null,0,0,0,0,null,0]
[78,null,null,", ",78,null,null,null,null,null,null,null,null,null,null,null,null,null,0,0,0,0,null,0]
[79,null,null,", ",79,null,null,null,null,null,null,null,null,null,null,null,null,null,0,0,0,0,null,0]
[80,null,null,", ",80,null,null,null,null,null,null,null,null,null,null,null,null,null,0,0,0,0,null,0]
[81,null,null,", ",81,null,null,null,null,null,null,null,null,null,null,null,null,null,0,0,0,0,null,0]
[82,null,null,", ",82,null,null,null,null,null,null,null,null,null,null,null,null,null,0,0,0,0,null,0]
[83,null,null,", ",83,null,null,null,null,null,null,null,null,null,null,null,null,null,0,0,0,0,null,0]
[84,null,null,", ",84,null,null,null,null,null,null,null,null,null,null,null,null,null,0,0,0,0,null,0]
[85,null,null,", ",85,null,null,null,null,null,null,null,null,null,null,null,null,null,0,0,0,0,null,0]
[86,null,null,", ",86,null,null,null,null,null,null,null,null,null,null,null,null,null,0,0,0,0,null,0]
[87,null,null,", ",87,null,null,null,null,null,null,null,null,null,null,null,null,null,0,0,0,0,null,0]
[88,null,null,", ",88,null,null,null,null,null,null,null,null,null,null,null,null,null,0,0,0,0,null,0]
[89,null,null,", ",89,null,null,null,null,null,null,null,null,null,null,null,null,null,0,0,0,0,null,0]
[90,null,null,", ",90,null,null,null,null,null,null,null,null,null,null,null,null,null,0,0,0,0,null,0]
[91,null,null,", ",91,null,null,null,null,null,null,null,null,null,null,null,null,null,0,0,0,0,null,0]
[92,null,null,", ",92,null,null,null,null,null,null,null,null,null,null,null,null,null,0,0,0,0,null,0]
[93,null,null,", ",93,null,null,null,null,null,null,null,null,null,null,null,null,null,0,0,0,0,null,0]
[94,null,null,", ",94,null,null,null,null,null,null,null,null,null,null,null,null,null,0,0,0,0,null,0]
[95,null,null,", ",95,null,null,null,null,null,null,null,null,null,null,null,null,null,0,0,0,0,null,0]
[96,null,null,", ",96,null,null,null,null,null,null,null,null,null,null,null,null,null,0,0,0,0,null,0]
[97,null,null,", ",97,null,null,null,null,null,null,null,null,null,null,null,null,null,0,0,0,0,null,0]
[98,null,null,", ",98,null,null,null,null,null,null,null,null,null,null,null,null,null,0,0,0,0,null,0]
[99,null,null,", ",99,null,null,null,null,null,null,null,null,null,null,null,null,null,0,0,0,0,null,0]
[100,null,null,", ",100,null,null,null,null,null,null,null,null,null,null,null,null,null,0,0,0,0,null,0]
[101,null,null,", ",101,null,null,null,null,null,null,null,null,null,null,null,null,null,0,0,0,0,null,0]
[102,null,null,", ",102,null,null,null,null,null,null,null,null,null,null,null,null,null,0,0,0,0,null,0]
[103,null,null,", ",103,null,null,null,null,null,null,null,null,null,null,null,null,null,0,0,0,0,null,0]
[104,null,null,", ",104,null,null,null,null,null,null,null,null,null,null,null,null,null,0,0,0,0,null,0]
[105,null,null,", ",105,null,null,null,null,null,null,null,null,null,null,null,null,null,0,0,0,0,null,0]
[106,null,null,", ",106,null,null,null,null,null,null,null,null,null,null,null,null,null,0,0,0,0,null,0]
[107,null,null,", ",107,null,null,null,null,null,null,null,null,null,null,null,null,null,0,0,0,0,null,0]
[108,null,null,", ",108,null,null,null,null,null,null,null,null,null,null,null,null,null,0,0,0,0,null,0]
[109,null,null,", ",109,null,null,null,null,null,null,null,null,null,null,null,null,null,0,0,0,0,null,0]
[110,null,null,", ",110,null,null,null,null,null,null,null,null,null,null,null,null,null,0,0,0,0,null,0]
[111,null,null,", ",111,null,null,null,null,null,null,null,null,null,null,null,null,null,0,0,0,0,null,0]
[112,null,null,", ",112,null,null,null,null,null,null,null,null,null,null,null,null,null,0,0,0,0,null,0]
[113,null,null,", ",113,null,null,null,null,null,null,null,null,null,null,null,null,null,0,0,0,0,null,0]
[114,null,null,", ",114,null,null,null,null,null,null,null,null,null,null,null,null,null,0,0,0,0,null,0]
[115,null,null,", ",115,null,null,null,null,null,null,null,null,null,null,null,null,null,0,0,0,0,null,0]
[116,null,null,", ",116,null,null,null,null,null,null,null,null,null,null,null,null,null,0,0,0,0,null,0]
[117,null,null,", ",117,null,null,null,null,null,null,null,null,null,null,null,null,null,0,0,0,0,null,0]
[118,null,null,", ",118,null,null,null,null,null,null,null,null,null,null,null,null,null,0,0,0,0,null,0]
[119,null,null,", ",119,null,null,null,null,null,null,null,null,null,null,null,null,null,0,0,0,0,null,0]
[120,null,null,", ",120,null,null,null,null,null,null,null,null,null,null,null,null,null,0,0,0,0,null,0]
[121,null,null,", ",121,null,null,null,null,null,null,null,null,null,null,null,null,null,0,0,{"$f":"S132+T132","v":0},0,null,{"$f":"V132-W132","v":0}]
[122,null,null,", ",122,null,null,null,null,null,null,null,null,null,null,null,null,null,0,0,0,0,null,0]
[123,null,null,", ",123,null,null,null,null,null,null,null,null,null,null,null,null,null,0,0,0,0,null,0]
[124,null,null,", ",124,null,null,null,null,null,null,null,null,null,null,null,null,null,0,0,0,0,null,0]
[125,null,null,", ",125,null,null,null,null,null,null,null,null,null,null,null,null,null,0,0,0,0,null,0]
[126,null,null,", ",126,null,null,null,null,null,null,null,null,null,null,null,null,null,0,0,0,0,null,0]
[127,null,null,", ",127,null,null,null,null,null,null,null,null,null,null,null,null,null,0,0,0,0,null,0]
[128,null,null,", ",128,null,null,null,null,null,null,null,null,null,null,null,null,null,0,0,0,0,null,0]
[129,null,null,", ",129,null,null,null,null,null,null,null,null,null,null,null,null,null,0,0,0,0,null,0]
[130,null,null,{"$f":"CONCATENATE(C141,\", \",B141)","v":", "},{"$f":"A141","v":130},null,null,null,null,null,null,null,null,null,null,null,null,null,{"$f":"SUM(F141:O141)","v":0},{"$f":"SUM(P141:R141)","v":0},0,{"$f":"IFERROR(S141*$I$4+T141*$I$5,0)","v":0},null,0]
[131,null,null,", ",131,null,null,null,null,null,null,null,null,null,null,null,null,null,0,0,0,0,null,0]
[132,null,null,", ",132,null,null,null,null,null,null,null,null,null,null,null,null,null,0,0,0,0,null,0]
[133,null,null,", ",133,null,null,null,null,null,null,null,null,null,null,null,null,null,0,0,0,0,null,0]
[134,null,null,", ",134,null,null,null,null,null,null,null,null,null,null,null,null,null,0,0,0,0,null,0]
[135,null,null,", ",135,null,null,null,null,null,null,null,null,null,null,null,null,null,0,0,0,0,null,0]
[136,null,null,", ",136,null,null,null,null,null,null,null,null,null,null,null,null,null,0,0,0,0,null,0]
[137,null,null,", ",137,null,null,null,null,null,null,null,null,null,null,null,null,null,0,0,0,0,null,0]
[138,null,null,", ",138,null,null,null,null,null,null,null,null,null,null,null,null,null,0,0,0,0,null,0]
[139,null,null,", ",139,null,null,null,null,null,null,null,null,null,null,null,null,null,0,0,0,0,null,0]
[140,null,null,", ",140,null,null,null,null,null,null,null,null,null,null,null,null,null,0,0,0,0,null,0]
[141,null,null,", ",141,null,null,null,null,null,null,null,null,null,null,null,null,null,0,0,0,0,null,0]
[142,null,null,", ",142,null,null,null,null,null,null,null,null,null,null,null,null,null,0,0,0,0,null,0]
[143,null,null,", ",143,null,null,null,null,null,null,null,null,null,null,null,null,null,0,0,0,0,null,0]
[144,null,null,", ",144,null,null,null,null,null,null,null,null,null,null,null,null,null,0,0,0,0,null,0]
[145,null,null,", ",145,null,null,null,null,null,null,null,null,null,null,null,null,null,0,0,0,0,null,0]
[146,null,null,", ",146,null,null,null,null,null,null,null,null,null,null,null,null,null,0,0,0,0,null,0]
[147,null,null,", ",147,null,null,null,null,null,null,null,null,null,null,null,null,null,0,0,0,0,null,0]
[148,null,null,", ",148,null,null,null,null,null,null,null,null,null,null,null,null,null,0,0,0,0,null,0]
[149,null,null,", ",149,null,null,null,null,null,null,null,null,null,null,null,null,null,0,0,0,0,null,0]
[150,null,null,", ",150,null,null,null,null,null,null,null,null,null,null,null,null,null,0,0,0,0,null,0]
[151,null,null,", ",151,null,null,null,null,null,null,null,null,null,null,null,null,null,0,0,0,0,null,0]
[152,null,null,", ",152,null,null,null,null,null,null,null,null,null,null,null,null,null,0,0,0,0,null,0]
[153,null,null,", ",153,null,null,null,null,null,null,null,null,null,null,null,null,null,0,0,0,0,null,0]
[154,null,null,", ",154,null,null,null,null,null,null,null,null,null,null,null,null,null,0,0,0,0,null,0]
[155,null,null,", ",155,null,null,null,null,null,null,null,null,null,null,null,null,null,0,0,0,0,null,0]
[156,null,null,", ",156,null,null,null,null,null,null,null,null,null,null,null,null,null,0,0,0,0,null,0]
[157,null,null,", ",157,null,null,null,null,null,null,null,null,null,null,null,null,null,0,0,0,0,null,0]
[158,null,null,", ",158,null,null,null,null,null,null,null,null,null,null,null,null,null,0,0,0,0,null,0]
[159,null,null,", ",159,null,null,null,null,null,null,null,null,null,null,null,null,null,0,0,0,0,null,0]
[160,null,null,", ",160,null,null,null,null,null,null,null,null,null,null,null,null,null,0,0,0,0,null,0]
[161,null,null,", ",161,null,null,null,null,null,null,null,null,null,null,null,null,null,0,0,0,0,null,0]
[162,null,null,", ",162,null,null,null,null,null,null,null,null,null,null,null,null,null,0,0,0,0,null,0]
[163,null,null,", ",163,null,null,null,null,null,null,null,null,null,null,null,null,null,0,0,0,0,null,0]
[164,null,null,", ",164,null,null,null,null,null,null,null,null,null,null,null,null,null,0,0,0,0,null,0]
[165,null,null,", ",165,null,null,null,null,null,null,null,null,null,null,null,null,null,0,0,0,0,null,0]
[166,null,null,", ",166,null,null,null,null,null,null,null,null,null,null,null,null,null,0,0,0,0,null,0]
[167,null,null,", ",167,null,null,null,null,null,null,null,null,null,null,null,null,null,0,0,0,0,null,0]
[168,null,null,", ",168,null,null,null,null,null,null,null,null,null,null,null,null,null,0,0,0,0,null,0]
[169,null,null,", ",169,null,null,null,null,null,null,null,null,null,null,null,null,null,0,0,0,0,null,0]
[170,null,null,", ",170,null,null,null,null,null,null,null,null,null,null,null,null,null,0,0,0,0,null,0]
[171,null,null,", ",171,null,null,null,null,null,null,null,null,null,null,null,null,null,0,0,0,0,null,0]
[172,null,null,", ",172,null,null,null,null,null,null,null,null,null,null,null,null,null,0,0,0,0,null,0]
[173,null,null,", ",173,null,null,null,null,null,null,null,null,null,null,null,null,null,0,0,0,0,null,0]
[174,null,null,", ",174,null,null,null,null,null,null,null,null,null,null,null,null,null,0,0,0,0,null,0]
[175,null,null,", ",175,null,null,null,null,null,null,null,null,null,null,null,null,null,0,0,0,0,null,0]
[176,null,null,", ",176,null,null,null,null,null,null,null,null,null,null,null,null,null,0,0,0,0,null,0]
[177,null,null,", ",177,null,null,null,null,null,null,null,null,null,null,null,null,null,0,0,0,0,null,0]
[178,null,null,", ",178,null,null,null,null,null,null,null,null,null,null,null,null,null,0,0,0,0,null,0]
[179,null,null,", ",179,null,null,null,null,null,null,null,null,null,null,null,null,null,0,0,0,0,null,0]
[180,null,null,", ",180,null,null,null,null,null,null,null,null,null,null,null,null,null,0,0,0,0,null,0]
[181,null,null,", ",181,null,null,null,null,null,null,null,null,null,null,null,null,null,0,0,0,0,null,0]
[182,null,null,", ",182,null,null,null,null,null,null,null,null,null,null,null,null,null,0,0,0,0,null,0]
[183,null,null,", ",183,null,null,null,null,null,null,null,null,null,null,null,null,null,0,0,0,0,null,0]
[184,null,null,", ",184,null,null,null,null,null,null,null,null,null,null,null,null,null,0,0,0,0,null,0]
[185,null,null,", ",185,null,null,null,null,null,null,null,null,null,null,null,null,null,0,0,{"$f":"S196+T196","v":0},0,null,{"$f":"V196-W196","v":0}]
[186,null,null,", ",186,null,null,null,null,null,null,null,null,null,null,null,null,null,0,0,0,0,null,0]
[187,null,null,", ",187,null,null,null,null,null,null,null,null,null,null,null,null,null,0,0,0,0,null,0]
[188,null,null,", ",188,null,null,null,null,null,null,null,null,null,null,null,null,null,0,0,0,0,null,0]
[189,null,null,", ",189,null,null,null,null,null,null,null,null,null,null,null,null,null,0,0,0,0,null,0]
[190,null,null,", ",190,null,null,null,null,null,null,null,null,null,null,null,null,null,0,0,0,0,null,0]
[191,null,null,", ",191,null,null,null,null,null,null,null,null,null,null,null,null,null,0,0,0,0,null,0]
[192,null,null,", ",192,null,null,null,null,null,null,null,null,null,null,null,null,null,0,0,0,0,null,0]
[193,null,null,", ",193,null,null,null,null,null,null,null,null,null,null,null,null,null,0,0,0,0,null,0]
[194,null,null,{"$f":"CONCATENATE(C205,\", \",B205)","v":", "},{"$f":"A205","v":194},null,null,null,null,null,null,null,null,null,null,null,null,null,{"$f":"SUM(F205:O205)","v":0},{"$f":"SUM(P205:R205)","v":0},0,{"$f":"IFERROR(S205*$I$4+T205*$I$5,0)","v":0},null,0]
[195,null,null,", ",195,null,null,null,null,null,null,null,null,null,null,null,null,null,0,0,0,0,null,0]
[196,null,null,", ",196,null,null,null,null,null,null,null,null,null,null,null,null,null,0,0,0,0,null,0]
[197,null,null,", ",197,null,null,null,null,null,null,null,null,null,null,null,null,null,0,0,0,0,null,0]
[198,null,null,", ",198,null,null,null,null,null,null,null,null,null,null,null,null,null,0,0,0,0,null,0]
[199,null,null,", ",199,null,null,null,null,null,null,null,null,null,null,null,null,null,0,0,0,0,null,0]
[200,null,null,", ",200,null,null,null,null,null,null,null,null,null,null,null,null,null,0,0,0,0,null,0]
[201,null,null,", ",201,null,null,null,null,null,null,null,null,null,null,null,null,null,0,0,0,0,null,0]
[202,null,null,", ",202,null,null,null,null,null,null,null,null,null,null,null,null,null,0,0,0,0,null,0]
[203,null,null,", ",203,null,null,null,null,null,null,null,null,null,null,null,null,null,0,0,0,0,null,0]
[204,null,null,", ",204,null,null,null,null,null,null,null,null,null,null,null,null,null,0,0,0,0,null,0]
[205,null,null,", ",205,null,null,null,null,null,null,null,null,null,null,null,null,null,0,0,0,0,null,0]
[206,null,null,", ",206,null,null,null,null,null,null,null,null,null,null,null,null,null,0,0,0,0,null,0]
[207,null,null,", ",207,null,null,null,null,null,null,null,null,null,null,null,null,null,0,0,0,0,null,0]
[208,null,null,", ",208,null,null,null,null,null,null,null,null,null,null,null,null,null,0,0,0,0,null,0]
[209,null,null,", ",209,null,null,null,null,null,null,null,null,null,null,null,null,null,0,0,0,0,null,0]
[210,null,null,", ",210,null,null,null,null,null,null,null,null,null,null,null,null,null,0,0,0,0,null,0]
[211,null,null,", ",211,null,null,null,null,null,null,null,null,null,null,null,null,null,0,0,0,0,null,0]
[212,null,null,", ",212,null,null,null,null,null,null,null,null,null,null,null,null,null,0,0,0,0,null,0]
[213,null,null,", ",213,null,null,null,null,null,null,null,null,null,null,null,null,null,0,0,0,0,null,0]
[214,null,null,", ",214,null,null,null,null,null,null,null,null,null,null,null,null,null,0,0,0,0,null,0]
[215,null,null,", ",215,null,null,null,null,null,null,null,null,null,null,null,null,null,0,0,0,0,null,0]
[216,null,null,", ",216,null,null,null,null,null,null,null,null,null,null,null,null,null,0,0,0,0,null,0]
[217,null,null,", ",217,null,null,null,null,null,null,null,null,null,null,null,null,null,0,0,0,0,null,0]
[218,null,null,", ",218,null,null,null,null,null,null,null,null,null,null,null,null,null,0,0,0,0,null,0]
[219,null,null,", ",219,null,null,null,null,null,null,null,null,null,null,null,null,null,0,0,0,0,null,0]
[220,null,null,", ",220,null,null,null,null,null,null,null,null,null,null,null,null,null,0,0,0,0,null,0]
[221,null,null,", ",221,null,null,null,null,null,null,null,null,null,null,null,null,null,0,0,0,0,null,0]
[222,null,null,", ",222,null,null,null,null,null,null,null,null,null,null,null,null,null,0,0,0,0,null,0]
[223,null,null,", ",223,null,null,null,null,null,null,null,null,null,null,null,null,null,0,0,0,0,null,0]
[224,null,null,", ",224,null,null,null,null,null,null,null,null,null,null,null,null,null,0,0,0,0,null,0]
[225,null,null,", ",225,null,null,null,null,null,null,null,null,null,null,null,null,null,0,0,0,0,null,0]
[226,null,null,", ",226,null,null,null,null,null,null,null,null,null,null,null,null,null,0,0,0,0,null,0]
[227,null,null,", ",227,null,null,null,null,null,null,null,null,null,null,null,null,null,0,0,0,0,null,0]
[228,null,null,", ",228,null,null,null,null,null,null,null,null,null,null,null,null,null,0,0,0,0,null,0]
[229,null,null,", ",229,null,null,null,null,null,null,null,null,null,null,null,null,null,0,0,0,0,null,0]
[230,null,null,", ",230,null,null,null,null,null,null,null,null,null,null,null,null,null,0,0,0,0,null,0]
[231,null,null,", ",231,null,null,null,null,null,null,null,null,null,null,null,null,null,0,0,0,0,null,0]
[232,null,null,", ",232,null,null,null,null,null,null,null,null,null,null,null,null,null,0,0,0,0,null,0]
[233,null,null,", ",233,null,null,null,null,null,null,null,null,null,null,null,null,null,0,0,0,0,null,0]
[234,null,null,", ",234,null,null,null,null,null,null,null,null,null,null,null,null,null,0,0,0,0,null,0]
[235,null,null,", ",235,null,null,null,null,null,null,null,null,null,null,null,null,null,0,0,0,0,null,0]
[236,null,null,", ",236,null,null,null,null,null,null,null,null,null,null,null,null,null,0,0,0,0,null,0]
[237,null,null,", ",237,null,null,null,null,null,null,null,null,null,null,null,null,null,0,0,0,0,null,0]
[238,null,null,", ",238,null,null,null,null,null,null,null,null,null,null,null,null,null,0,0,0,0,null,0]
[239,null,null,", ",239,null,null,null,null,null,null,null,null,null,null,null,null,null,0,0,0,0,null,0]
[240,null,null,", ",240,null,null,null,null,null,null,null,null,null,null,null,null,null,0,0,0,0,null,0]
[241,null,null,", ",241,null,null,null,null,null,null,null,null,null,null,null,null,null,0,0,0,0,null,0]
[242,null,null,", ",242,null,null,null,null,null,null,null,null,null,null,null,null,null,0,0,0,0,null,0]
[243,null,null,", ",243,null,null,null,null,null,null,null,null,null,null,null,null,null,0,0,0,0,null,0]
[244,null,null,", ",244,null,null,null,null,null,null,null,null,null,null,null,null,null,0,0,0,0,null,0]
[245,null,null,", ",245,null,null,null,null,null,null,null,null,null,null,null,null,null,0,0,0,0,null,0]
[246,null,null,", ",246,null,null,null,null,null,null,null,null,null,null,null,null,null,0,0,0,0,null,0]
[247,null,null,", ",247,null,null,null,null,null,null,null,null,null,null,null,null,null,0,0,0,0,null,0]
[248,null,null,", ",248,null,null,null,null,null,null,null,null,null,null,null,null,null,0,0,0,0,null,0]
[249,null,null,", ",249,null,null,null,null,null,null,null,null,null,null,null,null,null,0,0,{"$f":"S260+T260","v":0},0,null,{"$f":"V260-W260","v":0}]
[250,null,null,", ",250,null,null,null,null,null,null,null,null,null,null,null,null,null,0,0,0,0,null,0]
[251,null,null,", ",251,null,null,null,null,null,null,null,null,null,null,null,null,null,0,0,0,0,null,0]
[252,null,null,", ",252,null,null,null,null,null,null,null,null,null,null,null,null,null,0,0,0,0,null,0]
[253,null,null,", ",253,null,null,null,null,null,null,null,null,null,null,null,null,null,0,0,0,0,null,0]
[254,null,null,", ",254,null,null,null,null,null,null,null,null,null,null,null,null,null,0,0,0,0,null,0]
[255,null,null,", ",255,null,null,null,null,null,null,null,null,null,null,null,null,null,0,0,0,0,null,0]
[256,null,null,", ",256,null,null,null,null,null,null,null,null,null,null,null,null,null,0,0,0,0,null,0]
[257,null,null,", ",257,null,null,null,null,null,null,null,null,null,null,null,null,null,0,0,0,0,null,0]
[258,null,null,{"$f":"CONCATENATE(C269,\", \",B269)","v":", "},{"$f":"A269","v":258},null,null,null,null,null,null,null,null,null,null,null,null,null,{"$f":"SUM(F269:O269)","v":0},{"$f":"SUM(P269:R269)","v":0},0,{"$f":"IFERROR(S269*$I$4+T269*$I$5,0)","v":0},null,0]
[259,null,null,", ",259,null,null,null,null,null,null,null,null,null,null,null,null,null,0,0,0,0,null,0]
[260,null,null,", ",260,null,null,null,null,null,null,null,null,null,null,null,null,null,0,0,0,0,null,0]
[261,null,null,", ",261,null,null,null,null,null,null,null,null,null,null,null,null,null,0,0,0,0,null,0]
[262,null,null,", ",262,null,null,null,null,null,null,null,null,null,null,null,null,null,0,0,0,0,null,0]
[263,null,null,", ",263,null,null,null,null,null,null,null,null,null,null,null,null,null,0,0,0,0,null,0]
[264,null,null,", ",264,null,null,null,null,null,null,null,null,null,null,null,null,null,0,0,0,0,null,0]
[265,null,null,", ",265,null,null,null,null,null,null,null,null,null,null,null,null,null,0,0,0,0,null,0]
[266,null,null,", ",266,null,null,null,null,null,null,null,null,null,null,null,null,null,0,0,0,0,null,0]
[267,null,null,", ",267,null,null,null,null,null,null,null,null,null,null,null,null,null,0,0,0,0,null,0]
[268,null,null,", ",268,null,null,null,null,null,null,null,null,null,null,null,null,null,0,0,0,0,null,0]
[269,null,null,", ",269,null,null,null,null,null,null,null,null,null,null,null,null,null,0,0,0,0,null,0]
[270,null,null,", ",270,null,null,null,null,null,null,null,null,null,null,null,null,null,0,0,0,0,null,0]
[271,null,null,", ",271,null,null,null,null,null,null,null,null,null,null,null,null,null,0,0,0,0,null,0]
[272,null,null,", ",272,null,null,null,null,null,null,null,null,null,null,null,null,null,0,0,0,0,null,0]
[273,null,null,", ",273,null,null,null,null,null,null,null,null,null,null,null,null,null,0,0,0,0,null,0]
[274,null,null,", ",274,null,null,null,null,null,null,null,null,null,null,null,null,null,0,0,0,0,null,0]
[275,null,null,", ",275,null,null,null,null,null,null,null,null,null,null,null,null,null,0,0,0,0,null,0]
[276,null,null,", ",276,null,null,null,null,null,null,null,null,null,null,null,null,null,0,0,0,0,null,0]
[277,null,null,", ",277,null,null,null,null,null,null,null,null,null,null,null,null,null,0,0,0,0,null,0]
[278,null,null,", ",278,null,null,null,null,null,null,null,null,null,null,null,null,null,0,0,0,0,null,0]
[279,null,null,", ",279,null,null,null,null,null,null,null,null,null,null,null,null,null,0,0,0,0,null,0]
[280,null,null,", ",280,null,null,null,null,null,null,null,null,null,null,null,null,null,0,0,0,0,null,0]
[281,null,null,", ",281,null,null,null,null,null,null,null,null,null,null,null,null,null,0,0,0,0,null,0]
[282,null,null,", ",282,null,null,null,null,null,null,null,null,null,null,null,null,null,0,0,0,0,null,0]
[283,null,null,", ",283,null,null,null,null,null,null,null,null,null,null,null,null,null,0,0,0,0,null,0]
[284,null,null,", ",284,null,null,null,null,null,null,null,null,null,null,null,null,null,0,0,0,0,null,0]
[285,null,null,", ",285,null,null,null,null,null,null,null,null,null,null,null,null,null,0,0,0,0,null,0]
[286,null,null,", ",286,null,null,null,null,null,null,null,null,null,null,null,null,null,0,0,0,0,null,0]
[287,null,null,", ",287,null,null,null,null,null,null,null,null,null,null,null,null,null,0,0,0,0,null,0]
[288,null,null,", ",288,null,null,null,null,null,null,null,null,null,null,null,null,null,0,0,0,0,null,0]
[289,null,null,", ",289,null,null,null,null,null,null,null,null,null,null,null,null,null,0,0,0,0,null,0]
[290,null,null,", ",290,null,null,null,null,null,null,null,null,null,null,null,null,null,0,0,0,0,null,0]
[291,null,null,", ",291,null,null,null,null,null,null,null,null,null,null,null,null,null,0,0,0,0,null,0]
[292,null,null,", ",292,null,null,null,null,null,null,null,null,null,null,null,null,null,0,0,0,0,null,0]
[293,null,null,", ",293,null,null,null,null,null,null,null,null,null,null,null,null,null,0,0,0,0,null,0]
[294,null,null,", ",294,null,null,null,null,null,null,null,null,null,null,null,null,null,0,0,0,0,null,0]
[295,null,null,", ",295,null,null,null,null,null,null,null,null,null,null,null,null,null,0,0,0,0,null,0]
[296,null,null,", ",296,null,null,null,null,null,null,null,null,null,null,null,null,null,0,0,0,0,null,0]
[297,null,null,", ",297,null,null,null,null,null,null,null,null,null,null,null,null,null,0,0,0,0,null,0]
[298,null,null,", ",298,null,null,null,null,null,null,null,null,null,null,null,null,null,0,0,0,0,null,0]
[299,null,null,", ",299,null,null,null,null,null,null,null,null,null,null,null,null,null,0,0,0,0,null,0]
[300,null,null,", ",300,null,null,null,null,null,null,null,null,null,null,null,null,null,0,0,0,0,null,0]
[301,null,null,", ",301,null,null,null,null,null,null,null,null,null,null,null,null,null,0,0,0,0,null,0]
[302,null,null,", ",302,null,null,null,null,null,null,null,null,null,null,null,null,null,0,0,0,0,null,0]
[303,null,null,", ",303,null,null,null,null,null,null,null,null,null,null,null,null,null,0,0,0,0,null,0]
[304,null,null,", ",304,null,null,null,null,null,null,null,null,null,null,null,null,null,0,0,0,0,null,0]
[305,null,null,", ",305,null,null,null,null,null,null,null,null,null,null,null,null,null,0,0,0,0,null,0]
[306,null,null,", ",306,null,null,null,null,null,null,null,null,null,null,null,null,null,0,0,0,0,null,0]
[307,null,null,", ",307,null,null,null,null,null,null,null,null,null,null,null,null,null,0,0,0,0,null,0]
[308,null,null,", ",308,null,null,null,null,null,null,null,null,null,null,null,null,null,0,0,0,0,null,0]
[309,null,null,", ",309,null,null,null,null,null,null,null,null,null,null,null,null,null,0,0,0,0,null,0]
[310,null,null,", ",310,null,null,null,null,null,null,null,null,null,null,null,null,null,0,0,0,0,null,0]
[311,null,null,", ",311,null,null,null,null,null,null,null,null,null,null,null,null,null,0,0,0,0,null,0]
[312,null,null,", ",312,null,null,null,null,null,null,null,null,null,null,null,null,null,0,0,0,0,null,0]
[313,null,null,", ",313,null,null,null,null,null,null,null,null,null,null,null,null,null,0,0,{"$f":"S324+T324","v":0},0,null,{"$f":"V324-W324","v":0}]
[314,null,null,", ",314,null,null,null,null,null,null,null,null,null,null,null,null,null,0,0,0,0,null,0]
[315,null,null,", ",315,null,null,null,null,null,null,null,null,null,null,null,null,null,0,0,0,0,null,0]
[316,null,null,", ",316,null,null,null,null,null,null,null,null,null,null,null,null,null,0,0,0,0,null,0]
[317,null,null,", ",317,null,null,null,null,null,null,null,null,null,null,null,null,null,0,0,0,0,null,0]
[318,null,null,", ",318,null,null,null,null,null,null,null,null,null,null,null,null,null,0,0,0,0,null,0]
[319,null,null,", ",319,null,null,null,null,null,null,null,null,null,null,null,null,null,0,0,0,0,null,0]
[320,null,null,", ",320,null,null,null,null,null,null,null,null,null,null,null,null,null,0,0,0,0,null,0]
[321,null,null,", ",321,null,null,null,null,null,null,null,null,null,null,null,null,null,0,0,0,0,null,0]
[322,null,null,{"$f":"CONCATENATE(C333,\", \",B333)","v":", "},{"$f":"A333","v":322},null,null,null,null,null,null,null,null,null,null,null,null,null,{"$f":"SUM(F333:O333)","v":0},{"$f":"SUM(P333:R333)","v":0},0,{"$f":"IFERROR(S333*$I$4+T333*$I$5,0)","v":0},null,0]
[323,null,null,", ",323,null,null,null,null,null,null,null,null,null,null,null,null,null,0,0,0,0,null,0]
[324,null,null,", ",324,null,null,null,null,null,null,null,null,null,null,null,null,null,0,0,0,0,null,0]
[325,null,null,", ",325,null,null,null,null,null,null,null,null,null,null,null,null,null,0,0,0,0,null,0]
[326,null,null,", ",326,null,null,null,null,null,null,null,null,null,null,null,null,null,0,0,0,0,null,0]
[327,null,null,", ",327,null,null,null,null,null,null,null,null,null,null,null,null,null,0,0,0,0,null,0]
[328,null,null,", ",328,null,null,null,null,null,null,null,null,null,null,null,null,null,0,0,0,0,null,0]
[329,null,null,", ",329,null,null,null,null,null,null,null,null,null,null,null,null,null,0,0,0,0,null,0]
[330,null,null,", ",330,null,null,null,null,null,null,null,null,null,null,null,null,null,0,0,0,0,null,0]
[331,null,null,", ",331,null,null,null,null,null,null,null,null,null,null,null,null,null,0,0,0,0,null,0]
[332,null,null,", ",332,null,null,null,null,null,null,null,null,null,null,null,null,null,0,0,0,0,null,0]
[333,null,null,", ",333,null,null,null,null,null,null,null,null,null,null,null,null,null,0,0,0,0,null,0]
[334,null,null,", ",334,null,null,null,null,null,null,null,null,null,null,null,null,null,0,0,0,0,null,0]
[335,null,null,", ",335,null,null,null,null,null,null,null,null,null,null,null,null,null,0,0,0,0,null,0]
[336,null,null,", ",336,null,null,null,null,null,null,null,null,null,null,null,null,null,0,0,0,0,null,0]
[337,null,null,", ",337,null,null,null,null,null,null,null,null,null,null,null,null,null,0,0,0,0,null,0]
[338,null,null,", ",338,null,null,null,null,null,null,null,null,null,null,null,null,null,0,0,0,0,null,0]
[339,null,null,", ",339,null,null,null,null,null,null,null,null,null,null,null,null,null,0,0,0,0,null,0]
[340,null,null,", ",340,null,null,null,null,null,null,null,null,null,null,null,null,null,0,0,0,0,null,0]
[341,null,null,", ",341,null,null,null,null,null,null,null,null,null,null,null,null,null,0,0,0,0,null,0]
[342,null,null,", ",342,null,null,null,null,null,null,null,null,null,null,null,null,null,0,0,0,0,null,0]
[343,null,null,", ",343,null,null,null,null,null,null,null,null,null,null,null,null,null,0,0,0,0,null,0]
[344,null,null,", ",344,null,null,null,null,null,null,null,null,null,null,null,null,null,0,0,0,0,null,0]
[345,null,null,", ",345,null,null,null,null,null,null,null,null,null,null,null,null,null,0,0,0,0,null,0]
[346,null,null,", ",346,null,null,null,null,null,null,null,null,null,null,null,null,null,0,0,0,0,null,0]
[347,null,null,", ",347,null,null,null,null,null,null,null,null,null,null,null,null,null,0,0,0,0,null,0]
[348,null,null,", ",348,null,null,null,null,null,null,null,null,null,null,null,null,null,0,0,0,0,null,0]
[349,null,null,", ",349,null,null,null,null,null,null,null,null,null,null,null,null,null,0,0,0,0,null,0]
[350,null,null,", ",350,null,null,null,null,null,null,null,null,null,null,null,null,null,0,0,0,0,null,0]
[351,null,null,", ",351,null,null,null,null,null,null,null,null,null,null,null,null,null,0,0,0,0,null,0]
[352,null,null,", ",352,null,null,null,null,null,null,null,null,null,null,null,null,null,0,0,0,0,null,0]
[353,null,null,", ",353,null,null,null,null,null,null,null,null,null,null,null,null,null,0,0,0,0,null,0]
[354,null,null,", ",354,null,null,null,null,null,null,null,null,null,null,null,null,null,0,0,0,0,null,0]
[355,null,null,", ",355,null,null,null,null,null,null,null,null,null,null,null,null,null,0,0,0,0,null,0]
[356,null,null,", ",356,null,null,null,null,null,null,null,null,null,null,null,null,null,0,0,0,0,null,0]
[357,null,null,", ",357,null,null,null,null,null,null,null,null,null,null,null,null,null,0,0,0,0,null,0]
[358,null,null,", ",358,null,null,null,null,null,null,null,null,null,null,null,null,null,0,0,0,0,null,0]
[359,null,null,", ",359,null,null,null,null,null,null,null,null,null,null,null,null,null,0,0,0,0,null,0]
[360,null,null,", ",360,null,null,null,null,null,null,null,null,null,null,null,null,null,0,0,0,0,null,0]
[361,null,null,", ",361,null,null,null,null,null,null,null,null,null,null,null,null,null,0,0,0,0,null,0]
[362,null,null,", ",362,null,null,null,null,null,null,null,null,null,null,null,null,null,0,0,0,0,null,0]
[363,null,null,", ",363,null,null,null,null,null,null,null,null,null,null,null,null,null,0,0,0,0,null,0]
[364,null,null,", ",364,null,null,null,null,null,null,null,null,null,null,null,null,null,0,0,0,0,null,0]
[365,null,null,", ",365,null,null,null,null,null,null,null,null,null,null,null,null,null,0,0,0,0,null,0]
[366,null,null,", ",366,null,null,null,null,null,null,null,null,null,null,null,null,null,0,0,0,0,null,0]
[367,null,null,", ",367,null,null,null,null,null,null,null,null,null,null,null,null,null,0,0,0,0,null,0]
[368,null,null,", ",368,null,null,null,null,null,null,null,null,null,null,null,null,null,0,0,0,0,null,0]
[369,null,null,", ",369,null,null,null,null,null,null,null,null,null,null,null,null,null,0,0,0,0,null,0]
[370,null,null,", ",370,null,null,null,null,null,null,null,null,null,null,null,null,null,0,0,0,0,null,0]
[371,null,null,", ",371,null,null,null,null,null,null,null,null,null,null,null,null,null,0,0,0,0,null,0]
[372,null,null,", ",372,null,null,null,null,null,null,null,null,null,null,null,null,null,0,0,0,0,null,0]
[373,null,null,", ",373,null,null,null,null,null,null,null,null,null,null,null,null,null,0,0,0,0,null,0]
[374,null,null,", ",374,null,null,null,null,null,null,null,null,null,null,null,null,null,0,0,0,0,null,0]
[375,null,null,", ",375,null,null,null,null,null,null,null,null,null,null,null,null,null,0,0,0,0,null,0]
[376,null,null,", ",376,null,null,null,null,null,null,null,null,null,null,null,null,null,0,0,0,0,null,0]
[377,null,null,", ",377,null,null,null,null,null,null,null,null,null,null,null,null,null,0,0,{"$f":"S388+T388","v":0},0,null,{"$f":"V388-W388","v":0}]
[378,null,null,", ",378,null,null,null,null,null,null,null,null,null,null,null,null,null,0,0,0,0,null,0]
[379,null,null,", ",379,null,null,null,null,null,null,null,null,null,null,null,null,null,0,0,0,0,null,0]
[380,null,null,", ",380,null,null,null,null,null,null,null,null,null,null,null,null,null,0,0,0,0,null,0]
[381,null,null,", ",381,null,null,null,null,null,null,null,null,null,null,null,null,null,0,0,0,0,null,0]
[382,null,null,", ",382,null,null,null,null,null,null,null,null,null,null,null,null,null,0,0,0,0,null,0]
[383,null,null,", ",383,null,null,null,null,null,null,null,null,null,null,null,null,null,0,0,0,0,null,0]
[384,null,null,", ",384,null,null,null,null,null,null,null,null,null,null,null,null,null,0,0,0,0,null,0]
[385,null,null,", ",385,null,null,null,null,null,null,null,null,null,null,null,null,null,0,0,0,0,null,0]
[386,null,null,{"$f":"CONCATENATE(C397,\", \",B397)","v":", "},{"$f":"A397","v":386},null,null,null,null,null,null,null,null,null,null,null,null,null,{"$f":"SUM(F397:O397)","v":0},{"$f":"SUM(P397:R397)","v":0},0,{"$f":"IFERROR(S397*$I$4+T397*$I$5,0)","v":0},null,0]
[387,null,null,", ",387,null,null,null,null,null,null,null,null,null,null,null,null,null,0,0,0,0,null,0]
[388,null,null,", ",388,null,null,null,null,null,null,null,null,null,null,null,null,null,0,0,0,0,null,0]
[389,null,null,", ",389,null,null,null,null,null,null,null,null,null,null,null,null,null,0,0,0,0,null,0]
[390,null,null,", ",390,null,null,null,null,null,null,null,null,null,null,null,null,null,0,0,0,0,null,0]
[391,null,null,", ",391,null,null,null,null,null,null,null,null,null,null,null,null,null,0,0,0,0,null,0]
[392,null,null,", ",392,null,null,null,null,null,null,null,null,null,null,null,null,null,0,0,0,0,null,0]
[393,null,null,", ",393,null,null,null,null,null,null,null,null,null,null,null,null,null,0,0,0,0,null,0]
[394,null,null,", ",394,null,null,null,null,null,null,null,null,null,null,null,null,null,0,0,0,0,null,0]
[395,null,null,", ",395,null,null,null,null,null,null,null,null,null,null,null,null,null,0,0,0,0,null,0]
[396,null,null,", ",396,null,null,null,null,null,null,null,null,null,null,null,null,null,0,0,0,0,null,0]
[397,null,null,", ",397,null,null,null,null,null,null,null,null,null,null,null,null,null,0,0,0,0,null,0]
[398,null,null,", ",398,null,null,null,null,null,null,null,null,null,null,null,null,null,0,0,0,0,null,0]
[399,null,null,", ",399,null,null,null,null,null,null,null,null,null,null,null,null,null,0,0,0,0,null,0]
[400,null,null,", ",400,null,null,null,null,null,null,null,null,null,null,null,null,null,0,0,0,0,null,0]
[401,null,null,", ",401,null,null,null,null,null,null,null,null,null,null,null,null,null,0,0,0,0,null,0]
[402,null,null,", ",402,null,null,null,null,null,null,null,null,null,null,null,null,null,0,0,0,0,null,0]
[403,null,null,", ",403,null,null,null,null,null,null,null,null,null,null,null,null,null,0,0,0,0,null,0]
[404,null,null,", ",404,null,null,null,null,null,null,null,null,null,null,null,null,null,0,0,0,0,null,0]
[405,null,null,", ",405,null,null,null,null,null,null,null,null,null,null,null,null,null,0,0,0,0,null,0]
[406,null,null,", ",406,null,null,null,null,null,null,null,null,null,null,null,null,null,0,0,0,0,null,0]
[407,null,null,", ",407,null,null,null,null,null,null,null,null,null,null,null,null,null,0,0,0,0,null,0]
[408,null,null,", ",408,null,null,null,null,null,null,null,null,null,null,null,null,null,0,0,0,0,null,0]
[409,null,null,", ",409,null,null,null,null,null,null,null,null,null,null,null,null,null,0,0,0,0,null,0]
[410,null,null,", ",410,null,null,null,null,null,null,null,null,null,null,null,null,null,0,0,0,0,null,0]
[411,null,null,", ",411,null,null,null,null,null,null,null,null,null,null,null,null,null,0,0,0,0,null,0]
[412,null,null,", ",412,null,null,null,null,null,null,null,null,null,null,null,null,null,0,0,0,0,null,0]
[413,null,null,", ",413,null,null,null,null,null,null,null,null,null,null,null,null,null,0,0,0,0,null,0]
[414,null,null,", ",414,null,null,null,null,null,null,null,null,null,null,null,null,null,0,0,0,0,null,0]
[415,null,null,", ",415,null,null,null,null,null,null,null,null,null,null,null,null,null,0,0,0,0,null,0]
[416,null,null,", ",416,null,null,null,null,null,null,null,null,null,null,null,null,null,0,0,0,0,null,0]
[417,null,null,", ",417,null,null,null,null,null,null,null,null,null,null,null,null,null,0,0,0,0,null,0]
[418,null,null,", ",418,null,null,null,null,null,null,null,null,null,null,null,null,null,0,0,0,0,null,0]
[419,null,null,", ",419,null,null,null,null,null,null,null,null,null,null,null,null,null,0,0,0,0,null,0]
[420,null,null,", ",420,null,null,null,null,null,null,null,null,null,null,null,null,null,0,0,0,0,null,0]
[421,null,null,", ",421,null,null,null,null,null,null,null,null,null,null,null,null,null,0,0,0,0,null,0]
[422,null,null,", ",422,null,null,null,null,null,null,null,null,null,null,null,null,null,0,0,0,0,null,0]
[423,null,null,", ",423,null,null,null,null,null,null,null,null,null,null,null,null,null,0,0,0,0,null,0]
[424,null,null,", ",424,null,null,null,null,null,null,null,null,null,null,null,null,null,0,0,0,0,null,0]
[425,null,null,", ",425,null,null,null,null,null,null,null,null,null,null,null,null,null,0,0,0,0,null,0]
[426,null,null,", ",426,null,null,null,null,null,null,null,null,null,null,null,null,null,0,0,0,0,null,0]
[427,null,null,", ",427,null,null,null,null,null,null,null,null,null,null,null,null,null,0,0,0,0,null,0]
[428,null,null,", ",428,null,null,null,null,null,null,null,null,null,null,null,null,null,0,0,0,0,null,0]
[429,null,null,", ",429,null,null,null,null,null,null,null,null,null,null,null,null,null,0,0,0,0,null,0]
[430,null,null,", ",430,null,null,null,null,null,null,null,null,null,null,null,null,null,0,0,0,0,null,0]
[431,null,null,", ",431,null,null,null,null,null,null,null,null,null,null,null,null,null,0,0,0,0,null,0]
[432,null,null,", ",432,null,null,null,null,null,null,null,null,null,null,null,null,null,0,0,0,0,null,0]
[433,null,null,", ",433,null,null,null,null,null,null,null,null,null,null,null,null,null,0,0,0,0,null,0]
[434,null,null,", ",434,null,null,null,null,null,null,null,null,null,null,null,null,null,0,0,0,0,null,0]
[435,null,null,", ",435,null,null,null,null,null,null,null,null,null,null,null,null,null,0,0,0,0,null,0]
[436,null,null,", ",436,null,null,null,null,null,null,null,null,null,null,null,null,null,0,0,0,0,null,0]
[437,null,null,", ",437,null,null,null,null,null,null,null,null,null,null,null,null,null,0,0,0,0,null,0]
[438,null,null,", ",438,null,null,null,null,null,null,null,null,null,null,null,null,null,0,0,0,0,null,0]
[439,null,null,", ",439,null,null,null,null,null,null,null,null,null,null,null,null,null,0,0,0,0,null,0]
[440,null,null,", ",440,null,null,null,null,null,null,null,null,null,null,null,null,null,0,0,0,0,null,0]
[441,null,null,", ",441,null,null,null,null,null,null,null,null,null,null,null,null,null,0,0,{"$f":"S452+T452","v":0},0,null,{"$f":"V452-W452","v":0}]
[442,null,null,", ",442,null,null,null,null,null,null,null,null,null,null,null,null,null,0,0,0,0,null,0]
[443,null,null,", ",443,null,null,null,null,null,null,null,null,null,null,null,null,null,0,0,0,0,null,0]
[444,null,null,", ",444,null,null,null,null,null,null,null,null,null,null,null,null,null,0,0,0,0,null,0]
[445,null,null,", ",445,null,null,null,null,null,null,null,null,null,null,null,null,null,0,0,0,0,null,0]
[446,null,null,", ",446,null,null,null,null,null,null,null,null,null,null,null,null,null,0,0,0,0,null,0]
[447,null,null,", ",447,null,null,null,null,null,null,null,null,null,null,null,null,null,0,0,0,0,null,0]
[448,null,null,", ",448,null,null,null,null,null,null,null,null,null,null,null,null,null,0,0,0,0,null,0]
[449,null,null,", ",449,null,null,null,null,null,null,null,null,null,null,null,null,null,0,0,0,0,null,0]
[450,null,null,{"$f":"CONCATENATE(C461,\", \",B461)","v":", "},{"$f":"A461","v":450},null,null,null,null,null,null,null,null,null,null,null,null,null,{"$f":"SUM(F461:O461)","v":0},{"$f":"SUM(P461:R461)","v":0},0,{"$f":"IFERROR(S461*$I$4+T461*$I$5,0)","v":0},null,0]
[451,null,null,", ",451,null,null,null,null,null,null,null,null,null,null,null,null,null,0,0,0,0,null,0]
[452,null,null,", ",452,null,null,null,null,null,null,null,null,null,null,null,null,null,0,0,0,0,null,0]
[453,null,null,", ",453,null,null,null,null,null,null,null,null,null,null,null,null,null,0,0,0,0,null,0]
[454,null,null,", ",454,null,null,null,null,null,null,null,null,null,null,null,null,null,0,0,0,0,null,0]
[455,null,null,", ",455,null,null,null,null,null,null,null,null,null,null,null,null,null,0,0,0,0,null,0]
[456,null,null,", ",456,null,null,null,null,null,null,null,null,null,null,null,null,null,0,0,0,0,null,0]
[457,null,null,", ",457,null,null,null,null,null,null,null,null,null,null,null,null,null,0,0,0,0,null,0]
[458,null,null,", ",458,null,null,null,null,null,null,null,null,null,null,null,null,null,0,0,0,0,null,0]
[459,null,null,", ",459,null,null,null,null,null,null,null,null,null,null,null,null,null,0,0,0,0,null,0]
[460,null,null,", ",460,null,null,null,null,null,null,null,null,null,null,null,null,null,0,0,0,0,null,0]
[461,null,null,", ",461,null,null,null,null,null,null,null,null,null,null,null,null,null,0,0,0,0,null,0]
[462,null,null,", ",462,null,null,null,null,null,null,null,null,null,null,null,null,null,0,0,0,0,null,0]
[463,null,null,", ",463,null,null,null,null,null,null,null,null,null,null,null,null,null,0,0,0,0,null,0]
[464,null,null,", ",464,null,null,null,null,null,null,null,null,null,null,null,null,null,0,0,0,0,null,0]
[465,null,null,", ",465,null,null,null,null,null,null,null,null,null,null,null,null,null,0,0,0,0,null,0]
[466,null,null,", ",466,null,null,null,null,null,null,null,null,null,null,null,null,null,0,0,0,0,null,0]
[467,null,null,", ",467,null,null,null,null,null,null,null,null,null,null,null,null,null,0,0,0,0,null,0]
[468,null,null,", ",468,null,null,null,null,null,null,null,null,null,null,null,null,null,0,0,0,0,null,0]
[469,null,null,", ",469,null,null,null,null,null,null,null,null,null,null,null,null,null,0,0,0,0,null,0]
[470,null,null,", ",470,null,null,null,null,null,null,null,null,null,null,null,null,null,0,0,0,0,null,0]
[471,null,null,", ",471,null,null,null,null,null,null,null,null,null,null,null,null,null,0,0,0,0,null,0]
[472,null,null,", ",472,null,null,null,null,null,null,null,null,null,null,null,null,null,0,0,0,0,null,0]
[473,null,null,", ",473,null,null,null,null,null,null,null,null,null,null,null,null,null,0,0,0,0,null,0]
[474,null,null,", ",474,null,null,null,null,null,null,null,null,null,null,null,null,null,0,0,0,0,null,0]
[475,null,null,", ",475,null,null,null,null,null,null,null,null,null,null,null,null,null,0,0,0,0,null,0]
[476,null,null,", ",476,null,null,null,null,null,null,null,null,null,null,null,null,null,0,0,0,0,null,0]
[477,null,null,", ",477,null,null,null,null,null,null,null,null,null,null,null,null,null,0,0,0,0,null,0]
[478,null,null,", ",478,null,null,null,null,null,null,null,null,null,null,null,null,null,0,0,0,0,null,0]
[479,null,null,", ",479,null,null,null,null,null,null,null,null,null,null,null,null,null,0,0,0,0,null,0]
[480,null,null,", ",480,null,null,null,null,null,null,null,null,null,null,null,null,null,0,0,0,0,null,0]
[481,null,null,", ",481,null,null,null,null,null,null,null,null,null,null,null,null,null,0,0,0,0,null,0]
[482,null,null,", ",482,null,null,null,null,null,null,null,null,null,null,null,null,null,0,0,0,0,null,0]
[483,null,null,", ",483,null,null,null,null,null,null,null,null,null,null,null,null,null,0,0,0,0,null,0]
[484,null,null,", ",484,null,null,null,null,null,null,null,null,null,null,null,null,null,0,0,0,0,null,0]
[485,null,null,", ",485,null,null,null,null,null,null,null,null,null,null,null,null,null,0,0,0,0,null,0]
[486,null,null,", ",486,null,null,null,null,null,null,null,null,null,null,null,null,null,0,0,0,0,null,0]
[487,null,null,", ",487,null,null,null,null,null,null,null,null,null,null,null,null,null,0,0,0,0,null,0]
[488,null,null,", ",488,null,null,null,null,null,null,null,null,null,null,null,null,null,0,0,0,0,null,0]
[489,null,null,", ",489,null,null,null,null,null,null,null,null,null,null,null,null,null,0,0,0,0,null,0]
[490,null,null,", ",490,null,null,null,null,null,null,null,null,null,null,null,null,null,0,0,0,0,null,0]
[491,null,null,", ",491,null,null,null,null,null,null,null,null,null,null,null,null,null,0,0,0,0,null,0]
[492,null,null,", ",492,null,null,null,null,null,null,null,null,null,null,null,null,null,0,0,0,0,null,0]
[493,null,null,", ",493,null,null,null,null,null,null,null,null,null,null,null,null,null,0,0,0,0,null,0]
[494,null,null,", ",494,null,null,null,null,null,null,null,null,null,null,null,null,null,0,0,0,0,null,0]
[495,null,null,", ",495,null,null,null,null,null,null,null,null,null,null,null,null,null,0,0,0,0,null,0]
[496,null,null,", ",496,null,null,null,null,null,null,null,null,null,null,null,null,null,0,0,0,0,null,0]
[497,null,null,", ",497,null,null,null,null,null,null,null,null,null,null,null,null,null,0,0,{"$f":"S508+T508","v":0},0,null,{"$f":"V508-W508","v":0}]
[498,null,null,", ",498,null,null,null,null,null,null,null,null,null,null,null,null,null,0,0,0,0,null,0]
[499,null,null,", ",499,null,null,null,null,null,null,null,null,null,null,null,null,null,0,0,0,0,null,0]
[500,null,null,", ",500,null,null,null,null,null,null,null,null,null,null,null,null,null,0,0,0,0,null,0]

{"sheet":"Order Pulling Sheet","index":1,"n_rows":23,"n_cols":4,"rows_kept":23,"cut":false,"hidden":false,"merged":[[0,1,0,2],[2,1,2,2],[22,0,22,2],[7,3,7,12],[8,3,8,12],[5,3,5,12],[4,3,4,12]]}
["Seller Name:",", "]
[]
["Summary Sheet Order #:",{"$f":"IFERROR(VLOOKUP(B1,'Order Sheet Summary'!$D$12:$E$511,2,FALSE),0)","v":1}]
[]
["Italian",{"$f":"IFERROR(VLOOKUP($B$1,'Order Sheet Summary'!$D$12:$R$511,3,FALSE),0)","v":0},null,"BEFORE PRINTING CLICK ON SECURITY BOX THAT MAY POP UP:"]
["All American",{"$f":"IFERROR(VLOOKUP($B$1,'Order Sheet Summary'!$D$12:$R$511,4,FALSE),0)","v":0},null,"Enable Content On - SECURITY WARNING- MACROS HAS BEEN DISABLED"]
["Ham & Swiss",{"$f":"IFERROR(VLOOKUP($B$1,'Order Sheet Summary'!$D$12:$R$511,5,FALSE),0)","v":0}]
["Sweet Lebanon Bologna",{"$f":"IFERROR(VLOOKUP($B$1,'Order Sheet Summary'!$D$12:$R$511,6,FALSE),0)","v":0},null,"TO PRINT ALL OF THE SHEETS LISTED ON THE ORDER SHEET SUMMARY:"]
["Ham Club",{"$f":"IFERROR(VLOOKUP($B$1,'Order Sheet Summary'!$D$12:$R$511,7,FALSE),0)","v":0},null,"Check printer settings: 1. Default Printer 2. Correct paper/tray 3. One sided printing"]
["Roast Beef",{"$f":"IFERROR(VLOOKUP($B$1,'Order Sheet Summary'!$D$12:$R$511,8,FALSE),0)","v":0},null,"PRESS  \"CTRL\" + \"A\""]
["Smoked Ham & Cheddar",{"$f":"IFERROR(VLOOKUP($B$1,'Order Sheet Summary'!$D$12:$R$511,9,FALSE),0)","v":0}]
["Turkey",{"$f":"IFERROR(VLOOKUP($B$1,'Order Sheet Summary'!$D$12:$R$511,10,FALSE),0)","v":0},null,"TO PRINT OFF PULL SHEETS FOR AN INDIVIDUAL SELLER:"]
["Traditional",{"$f":"IFERROR(VLOOKUP($B$1,'Order Sheet Summary'!$D$12:$R$511,11,FALSE),0)","v":0},null,"Click on the field to the right of the seller’s name."]
["Three Cheese",{"$f":"IFERROR(VLOOKUP($B$1,'Order Sheet Summary'!$D$12:$R$511,12,FALSE),0)","v":0},null,"Click on the drop down menu arrow and scroll to see name."]
["Total Hoagies",{"$f":"SUM(B5:B14)","v":0},null,"Select the name you want and their order will auto populate in the picking sheet."]
[null,null,null,"Press print from your programs menu, ensure print settings are correct."]
["Pepperoni",{"$f":"IFERROR(VLOOKUP($B$1,'Order Sheet Summary'!$D$12:$R$511,13,FALSE),0)","v":0},null,"Repeat this for each seller as needed."]
["White",{"$f":"IFERROR(VLOOKUP($B$1,'Order Sheet Summary'!$D$12:$R$511,14,FALSE),0)","v":0}]
["Cheese",{"$f":"IFERROR(VLOOKUP($B$1,'Order Sheet Summary'!$D$12:$R$511,15,FALSE),0)","v":0}]
["Total Pizzas",{"$f":"SUM(B17:B19)","v":0}]
[]
["I Acknowledge receipt of the items listed above:   "]
["Signature:__________________ Date:_________"]

{"sheet":"Sheet1","index":2,"n_rows":0,"n_cols":0,"rows_kept":0,"cut":false,"hidden":false,"merged":[]}